Cogmind - Beta 10.2 --- EXPLORER MODE // 2021.01.21 @ 00:59:01 // Winter2019/RPGLIKE Player: Zaltroth Result: Self-destructed Performance ------------- Evolutions (3) 1500 Regions Visited (4) 800 Robots Destroyed (62) 310 Value Destroyed (1883) 1883 Prototype IDs (10) 200 Alien Tech Used (0) 0 Bonus (60) 60 TOTAL SCORE: 4753 Bonus ------- High Alert Combat Kills 60 Cogmind --------- Core Integrity 1047/1050 Matter 290/300 Energy 246/300 System Corruption 0% Temperature Cool (0) Movement Flying (102) Ox1 Location -7/Factory Parts ------- > --- POWER (1) -------- Light Angular Momentum Engine > --- PROPULSION (2) --- Improved VTOL Module Improved VTOL Module > --- UTILITY (5) ------ Structural Scanner Advanced Signal Interpreter Long-range Terrain Scanner Transmission Jammer Maneuvering Thrusters > --- WEAPON (2) ------- Improved EM Pulse Cannon Cooled Particle Cannon > --- INVENTORY (5) ---- Protomatter-58 Weapon Cycler Recalibrator Heavy Missile Launcher Peak State ------------ > --- POWER ------------ Light Angular Momentum Engine > --- PROPULSION ------- Improved VTOL Module Improved VTOL Module > --- UTILITY ---------- Compact Battery Advanced Signal Interpreter Improved Terrain Scanner Maneuvering Thrusters Recalibrator > --- WEAPON ----------- Cooled Particle Cannon Shock Bomb Launcher > --- INVENTORY -------- Protomatter Structural Scanner System Backup Module Heavy Missile Launcher [Rating: 37] Favorites ----------- Power Light Ion Engine Engine Light Ion Engine Power Core Light Nuclear Core Propulsion Improved VTOL Module Leg Aluminum Leg Flight Unit Improved VTOL Module Utility Structural Scanner Device Structural Scanner Storage Compact Battery Processor Advanced Signal Interpreter Hackware Hacking Suite Weapon Cooled Particle Cannon Energy Gun EM Pulse Gun Energy Cannon Cooled Particle Cannon Launcher Shock Bomb Launcher Build | -11 -10 -9 -8 -7 ------- Run | Scr Mat Mat Mat Fac Slots Evolved 6 | 3 . 2 . 1 Power . | . . . . . Propulsion 1 | 1 . . . . Utility 4 | 1 . 2 . 1 Weapon 1 | 1 . . . . Parts Attached 47 | 8 3 9 5 22 Power 7 | 1 1 . . 5 Engine 5 | 1 1 . . 3 Core 2 | . . . . 2 Reactor . | . . . . . Propulsion 9 | 2 2 2 2 1 Treads . | . . . . . Leg 2 | 2 . . . . Wheel . | . . . . . Hover . | . . . . . Flight 7 | . 2 2 2 1 Utility 18 | 3 . 1 3 11 Device 11 | 3 . . . 8 Storage 2 | . . . . 2 Processor 4 | . . 1 2 1 Hackware 1 | . . . 1 . Protection . | . . . . . Artifact . | . . . . . Weapon 13 | 2 . 6 . 5 Energy Gun 6 | 2 . 4 . . Energy Cannon 6 | . . 2 . 4 Ballistic Gun . | . . . . . Ballistic Cannon . | . . . . . Launcher 1 | . . . . 1 Special Weapon . | . . . . . Impact Weapon . | . . . . . Slashing Weapon . | . . . . . Piercing Weapon . | . . . . . Special Melee Weapon . | . . . . . Unidentified Prototypes 3 | . . 1 1 1 Parts Lost . | . . . . . Power . | . . . . . Propulsion . | . . . . . Utility . | . . . . . Weapon . | . . . . . Highest Loss Streak . | . . . . . Average Slot Usage (%) 96 | . 95 92 90 99 Engine 10 | . 12 11 11 9 Flight 21 | . 25 23 21 20 Device 28 | . 28 23 22 31 Storage 3 | . . . . 6 Processor 9 | . . 11 11 10 Hackware 1 | . . . 2 1 Energy Gun 5 | . 28 18 . . Energy Cannon 10 | . . 4 22 12 Launcher 4 | . . . . 7 Naked Turns . | . . . . . Heaviest Build 27 | 9 9 13 13 27 Greatest Support 27 | 25 13 22 22 27 Greatest Overweight (x) 1 | 1 . . . . Average Overweight (x) . | . . . . . Largest Inventory Capacity 5 | 2 2 3 4 5 Average Capacity 3 | 2 2 2 3 4 Most Carried 5 | 2 2 3 4 5 Average Carried 3 | . 1 2 3 4 Final Capacity 5 | 2 2 3 4 5 Final Carried 4 | 2 2 3 4 4 Class Distribution -------------------- 86% | Hacker-Scout 13% | Wizard-Scout Dominant Class ---------------- Hacker-Scout | -10/Materials Hacker-Scout | -9/Materials Hacker-Scout | -8/Materials Hacker-Scout | -7/Factory Resources | -11 -10 -9 -8 -7 ----------- Run | Scr Mat Mat Mat Fac Matter Collected 805 | 270 40 90 30 375 Remotely . | . . . . . Salvage Created 2033 | 128 318 592 213 782 Parts 135 | 12 17 49 12 45 Haulers Intercepted 2 | . . 2 . . Recyclers Shooed . | . . . . . Parts Field Recycled . | . . . . . Retrieved Matter . | . . . . . Parts Self-Destructed . | . . . . . Prevented . | . . . . . Kills | -11 -10 -9 -8 -7 ------- Run | Scr Mat Mat Mat Fac Combat Hostiles Destroyed 33 | . 5 15 3 10 Guns 11 | . 4 7 . . Cannons 7 | . . 1 2 4 AOE 10 | . 1 4 . 5 Classes Destroyed 13 | 2 2 5 1 3 Worker 2 | . . . . 2 Builder 3 | . . 1 . 2 Tunneler 3 | 3 . . . . Hauler 2 | . . 2 . . Recycler 3 | 1 . . . 2 Operator 1 | . . 1 . . Watcher 15 | . 3 4 2 6 Swarmer 6 | . . 6 . . Grunt 17 | . 5 5 1 6 Duelist 1 | . . . 1 . Sentry 6 | . . 4 1 1 Hunter 1 | . . . . 1 Programmer 2 | . . . . 2 Best Kill Streak 6 | 2 6 4 5 3 Combat Bots Only 5 | . 5 3 3 3 Max Kills in Single Turn 3 | 1 1 2 1 3 Gunslinging . | . . . . . Exploded 2 | . 1 2 . 2 Melee . | . . . . . Uniques/NPCs Destroyed . | . . . . . Combat | -11 -10 -9 -8 -7 -------- Run | Scr Mat Mat Mat Fac Damage Taken 670 | . 33 439 39 159 Core 538 | . 26 352 30 130 Absorbed by Shields . | . . . . . Redirected to Core 403 | . 17 267 30 89 Core Remaining (%) 100 | 100 100 100 100 . Volleys Fired 171 | 5 30 80 16 40 Largest 2 | 2 1 2 2 2 Hottest 126 | 90 40 124 124 126 Shots Fired 183 | 10 30 84 18 41 Gun 110 | 10 30 70 . . Cannon 44 | . . 14 18 12 Launcher 29 | . . . . 29 Special . | . . . . . Kinetic . | . . . . . Thermal 23 | 5 . 3 3 12 Explosive . | . . . . . Electromagnetic 160 | 5 30 81 15 29 Robot Hit Streak 22 | 6 22 22 13 22 Robot Miss Streak 2 | 1 1 2 1 2 Penetration Max . | . . . . . Secondary Targets . | . . . . . Shots Hit Robots 157 | 6 27 77 16 31 Core Hits 75 | 5 14 27 6 23 Critical Hits . | . . . . . Critical Kills . | . . . . . Critical Parts Destroyed . | . . . . . Melee Attacks . | . . . . . Impact . | . . . . . Slashing . | . . . . . Piercing . | . . . . . Sneak Attacks . | . . . . . Combat Hostiles . | . . . . . Follow-up Attacks . | . . . . . Damage Inflicted 4839 | 89 592 1781 377 2000 Guns 1410 | 89 442 879 . . Cannons 1226 | . . 357 345 524 Explosions 2203 | . 150 545 32 1476 Melee . | . . . . . Ramming . | . . . . . Kinetic . | . . . . . Thermal 1775 | 25 150 612 76 912 Explosive . | . . . . . Electromagnetic 3064 | 64 442 1169 301 1088 Impact . | . . . . . Slashing . | . . . . . Piercing . | . . . . . Highest Corruption . | . . . . . Average Corruption . | . . . . . Corruption Purged . | . . . . . Overload Shots 11 | . . . . 11 Overflow Damage 238 | . 14 48 5 171 Projectiles 58 | . . 28 5 25 Explosions 180 | . 14 20 . 146 Melee . | . . . . . Knockbacks . | . . . . . Impact . | . . . . . Kinetic . | . . . . . Secondary . | . . . . . Self-Inflicted Damage 62 | . . 59 . 3 Shots 4 | . . 3 . 1 Rammed . | . . . . . Targets Rammed . | . . . . . Kicked . | . . . . . Crushed . | . . . . . Highest Temperature 14 | . . 14 3 2 Average Temperature 6 | . . 9 2 1 Received Heat Transfer 363 | . 30 255 27 51 Siege Activations . | . . . . . Robots Corrupted 9 | . . 5 1 3 Combat Hostiles 5 | . . 3 1 1 Parts Fried 19 | . 3 8 4 4 Impact Corruptions . | . . . . . Robots Melted . | . . . . . Combat Hostiles . | . . . . . Parts Melted 4 | . . 1 . 3 Heat Transferred 1909 | 74 150 811 124 750 Parts Sabotaged . | . . . . . Parts Stolen . | . . . . . Parts Stripped . | . . . . . Power Chain Reactions 15 | . 3 9 1 2 Missiles Intercepted . | . . . . . Alert | -11 -10 -9 -8 -7 ------- Run | Scr Mat Mat Mat Fac Peak Influence 658 | 20 272 462 198 658 Initial 64 | . 9 40 64 64 Average 186 | 6 169 189 185 209 Maximum Alert Level 2 | . 1 2 . 2 Low Security (%) 64 | 100 62 54 100 57 Level 1 21 | . 37 41 . 19 Level 2 14 | . . 4 . 23 Level 3 . | . . . . . Level 4 . | . . . . . Level 5 . | . . . . . High Security . | . . . . . Max Security . | . . . . . Squads Dispatched 10 | . . 2 . 8 Investigation 4 | . . . . 4 Extermination 1 | . . . . 1 Reinforcement 4 | . . 2 . 2 Assault 1 | . . . . 1 Garrison . | . . . . . Intercept . | . . . . . Construction Impeded 3 | . . 1 . 2 Haulers Reinforced . | . . . . . Stealth | -11 -10 -9 -8 -7 --------- Run | Scr Mat Mat Mat Fac Distress Signals 4 | . 1 2 1 . Communications Jammed . | . . . . . Distress Signals . | . . . . . Times Spotted 59 | . 10 22 6 21 Peak Tracking Total 4 | . 3 4 2 3 Tactical Retreats 2 | . . 1 . 1 Traps | -11 -10 -9 -8 -7 ------- Run | Scr Mat Mat Mat Fac Traps Triggered 5 | . 1 . . 4 Indirectly 1 | . . . . 1 Trap Hack Attempts . | . . . . . Triggered . | . . . . . Disarmed 12 | . 12 . . . Reprogrammed 3 | . . 3 . . Reused . | . . . . . Traps Extracted . | . . . . . Installed . | . . . . . Triggered . | . . . . . Machines | -11 -10 -9 -8 -7 ---------- Run | Scr Mat Mat Mat Fac Machines Disabled 13 | . 2 4 . 7 Max in Single Turn 3 | . 1 1 . 3 Garrison Access 1 | . . . . 1 Machines Sabotaged . | . . . . . Garrisons Compromised . | . . . . . Overloaded Fab Kills . | . . . . . Fab Network Shutdowns 1 | . . . . 1 Hacking | -11 -10 -9 -8 -7 --------- Run | Scr Mat Mat Mat Fac Machines Accessed 29 | . 7 7 3 12 Terminals 20 | . 6 6 3 5 Fabricators 3 | . . . . 3 Repair Stations 1 | . . . . 1 Recycling Units 2 | . 1 . . 1 Scanalyzers 3 | . . 1 . 2 Garrison Access . | . . . . . Total Hacks 158 | . 29 40 19 70 Successful 132 | . 26 32 15 59 Failed 26 | . 3 8 4 11 Catastrophic . | . . . . . Database Lockouts . | . . . . . Manual 67 | . 3 24 9 31 Terminals 113 | . 28 38 19 28 Fabricators 15 | . . . . 15 Repair Stations 1 | . . . . 1 Recycling Units 4 | . 1 . . 3 Scanalyzers 25 | . . 2 . 23 Garrison Access . | . . . . . Terminal Hacks 79 | . 25 30 10 14 Record 3 | . 1 1 . 1 Part Schematic 2 | . . 1 1 . Robot Analysis 2 | . 2 . . . Prototype ID Bank 4 | . 1 2 1 . Level Access Points 3 | . 1 2 . . Branch Access Points 3 | . 1 2 . . Emergency Access Points 3 | . 2 . 1 . Machine Index 1 | . . . 1 . Terminal Index 3 | . . 2 . 1 Alert Level 9 | . 3 3 1 2 Unreport Threat 5 | . 1 1 . 3 Locate Traps 6 | . 3 2 . 1 Disarm Traps 2 | . 2 . . . Reprogram Traps 1 | . . 1 . . Dispatch Records 2 | . 1 1 . . Maintenance Status 1 | . . 1 . . Security Status 2 | . . 1 1 . Surveillance Status 2 | . 1 1 . . Patrol Status 2 | . 1 1 . . Transport Status 1 | . . 1 . . Investigation Status 2 | . 1 1 . . Extermination Status 1 | . . . . 1 Reinforcement Status 3 | . 1 . 1 1 Coupling Status 1 | . . 1 . . Recall Reinforcements 1 | . . . . 1 Recall Assault 1 | . . . . 1 Hauler Manifests 5 | . 1 2 2 . Registered Components 3 | . 1 1 . 1 Registered Prototypes 2 | . 1 . . 1 Zone Layout 3 | . . 2 1 . Fabricator Hacks 8 | . . . . 8 Network Status 2 | . . . . 2 Load Schematic 1 | . . . . 1 Build 5 | . . . . 5 Repair Station Hacks . | . . . . . Recycling Unit Hacks 2 | . 1 . . 1 Report Inventory 2 | . 1 . . 1 Scanalyzer 23 | . . 2 . 21 Insert Component 11 | . . 1 . 10 Analyze 12 | . . 1 . 11 Garrison Access Hacks . | . . . . . Unauthorized Hacks 20 | . . . 5 15 Terminals 12 | . . . 5 7 Track 2 | . . . 1 1 Assimilate 6 | . . . 2 4 Botnet 1 | . . . . 1 Disrupt 1 | . . . 1 . Operators 2 | . . . 1 1 Fabricators 4 | . . . . 4 Report 1 | . . . . 1 Haulers 1 | . . . . 1 Download 2 | . . . . 2 Repair Stations 1 | . . . . 1 Mechanics 1 | . . . . 1 Recycling Units 1 | . . . . 1 Monitor 1 | . . . . 1 Scanalyzers 2 | . . . . 2 Extract 2 | . . . . 2 Garrison Access . | . . . . . Data Cores Recovered . | . . . . . Used . | . . . . . Hacking Detections 23 | . 5 6 2 10 Full Trace Events . | . . . . . Feedback Events . | . . . . . Feedback Blocked . | . . . . . Robot Schematics Acquired . | . . . . . Robots Built 2 | . . . . 2 Matter 252 | . . . . 252 Time 134 | . . . . 134 Total Robot Build Rating 8 | . . . . 8 Part Schematics Acquired 18 | . . 2 1 15 Parts Built . | . . . . . Matter . | . . . . . Time . | . . . . . Total Part Build Rating . | . . . . . Parts Repaired . | . . . . . Time . | . . . . . Parts Recycled . | . . . . . Recycled Matter . | . . . . . Retrieved Matter . | . . . . . Retrieved Components . | . . . . . Parts Scanalyzed 11 | . . 1 . 10 Part Schematics Acquired 11 | . . 1 . 10 Parts Damaged 1 | . . . . 1 Bothacking | -11 -10 -9 -8 -7 ------------ Run | Scr Mat Mat Mat Fac Used RIF Installer . | . . . . . Robots Hacked . | . . . . . Non-combat . | . . . . . Combat . | . . . . . Robot Hacks Applied . | . . . . . Relay Couplers Released . | . . . . . Robots Rewired . | . . . . . Allies Hacked . | . . . . . Hacks Repelled . | . . . . . Allies | -11 -10 -9 -8 -7 -------- Run | Scr Mat Mat Mat Fac Total Allies 6 | . . . 1 5 Largest Group 5 | . . . 1 5 Highest-Rated Group 126 | . . . 10 126 Highest-Rated Ally 32 | . . . 10 32 Total Orders 14 | . . . 2 12 STAY 6 | . . . 1 5 FOLLOW 2 | . . . 1 1 GUARD 6 | . . . . 6 Ally Attacks 10 | . . . . 10 Total Damage 294 | . . . . 294 Kills 3 | . . . . 3 Allies Corrupted . | . . . . . Allies Melted . | . . . . . Intel | -11 -10 -9 -8 -7 ------- Run | Scr Mat Mat Mat Fac Robot Analysis Total 2 | . 2 . . . Derelict Logs Recovered . | . . . . . Drone Launches . | . . . . . Drone Recoveries . | . . . . . Exploration | -11 -10 -9 -8 -7 ------------- Run | Scr Mat Mat Mat Fac Turns Passed 3171 | 216 248 574 302 1831 Spaces Moved 3574 | 197 417 544 417 1999 Core 229 | 186 43 . . . Treads . | . . . . . Legs 11 | 11 . . . . Wheels . | . . . . . Hover . | . . . . . Flight 3334 | . 374 544 417 1999 Fastest Speed 32 | 50 37 32 32 32 Average Speed 35 | 67 38 35 32 32 Slowest Speed 120 | 120 50 37 35 32 Overloaded Moves . | . . . . . Propulsion Burnouts . | . . . . . Robots Hopped 13 | . 2 6 . 5 Cave-ins Triggered . | . . . . . Exploration Rate (%) 41 | 10 76 54 31 38 Regions Visited 4 Branch Regions . Pre-discovered Areas . | . . . . . Known Exits Taken 4 | 1 1 1 1 . Unknown Exits Taken . | . . . . . Scrap Searched . | . . . . . Spaces Dug . | . . . . . Terrain Destroyed 127 | . 15 25 4 83 Melee . | . . . . . Projectile 3 | . . . . 3 AOE 124 | . 15 25 4 80 Terrain Rammed . | . . . . . Walls Destroyed . | . . . . . Machines Disabled . | . . . . . Actions | -11 -10 -9 -8 -7 --------- Run | Scr Mat Mat Mat Fac Total 5299 | 271 472 837 567 3152 Wait 1395 | 51 17 165 120 1042 Move 3544 | 196 412 531 416 1989 Hop 13 | . 2 6 . 5 Pick Up 32 | 8 3 7 2 12 Fast Attach 23 | . 2 6 4 11 Attach 19 | 7 1 3 1 7 Detach 10 | 1 . 1 1 7 Swap 5 | 1 . . . 4 Drop 42 | 2 2 11 4 23 Fire 171 | 5 30 80 16 40 Melee . | . . . . . Ram . | . . . . . Kick . | . . . . . Crush . | . . . . . Escape Stasis . | . . . . . Rewire . | . . . . . Trap . | . . . . . Miscellaneous 45 | . 3 27 3 12 Route ------- -11/Scrapyard -10/Materials (discovered 5 exits: *Mat x3 / *Min x2) -9/Materials (discovered 5 exits: *Mat x3 / *Min x2) -8/Materials (discovered 2 exits: *Fac / *Sto) -7/Factory (discovered 2 exits: *Fac / Low) History --------- Turn | Location | Event 1 | -11/Scrapyard | Upgraded with Propulsion slot (x1) 1 | -11/Scrapyard | Upgraded with Utility slot (x1) 1 | -11/Scrapyard | Upgraded with Weapon slot (x1) 16 | -11/Scrapyard | Identified exit to Materials 16 | -11/Scrapyard | Discovered exit to Materials (range 17) 217 | -11/Scrapyard | Entered Materials 302 | -10/Materials | Build established: Hacker-Scout 313 | -10/Materials | Identified exit to Materials 313 | -10/Materials | Discovered exit to Materials (range 17) 327 | -10/Materials | Identified exit to Mines 373 | -10/Materials | Discovered exit to Materials (range 17) 465 | -10/Materials | Entered another Materials area 467 | -9/Materials | Reached level 2 467 | -9/Materials | Reached level 3 467 | -9/Materials | Upgraded with Utility slot (x1) 629 | -9/Materials | Identified exit to Mines 629 | -9/Materials | Identified exit to Materials 672 | -9/Materials | Reached level 4 674 | -9/Materials | Upgraded with Utility slot (x1) 862 | -9/Materials | Reached level 5 1039 | -9/Materials | Entered another Materials area 1041 | -8/Materials | Reached level 6 1041 | -8/Materials | Reached level 7 1058 | -8/Materials | Identified exit to Storage 1058 | -8/Materials | Discovered exit to Storage (range 13) 1300 | -8/Materials | Identified exit to Factory 1300 | -8/Materials | Discovered exit to Factory (range 16) 1341 | -8/Materials | Entered Factory 1341 | -7/Factory | Accompanied by 1 ally 1343 | -7/Factory | Reached level 8 1343 | -7/Factory | Reached level 9 1344 | -7/Factory | Upgraded with Utility slot (x1) 1494 | -7/Factory | Identified exit to Lower Caves 1494 | -7/Factory | Discovered exit to Lower Caves (range 12) 1560 | -7/Factory | Build established: Wizard-Scout 1893 | -7/Factory | Fabricated Y-54 Guardian (x2) 1940 | -7/Factory | Local fabrication network quarantined 1973 | -7/Factory | Reached level 10 1998 | -7/Factory | Build established: Hacker-Scout 2571 | -7/Factory | Reached level 11 2633 | -7/Factory | Identified exit to Factory 2633 | -7/Factory | Discovered exit to Factory (range 18) 3168 | -7/Factory | Reached level 12 3172 | -7/Factory | Self-destructed Last Messages --------------- 03068_ Connecting with Scanalyzer... >>Force(Extract) EXTRACTED[Weapon Shielding] EXTRACTED[Prc. Assault Rifle] EXTRACTED[Lrg. Matter Pod] 03068_ ALERT: Suspicious activity at Scanalyzer F004. Dispatching Investigation squad. 03087_ K-01 Serf cleans the Megafabricator. 03168_ Connecting with Fabricator... 03168_ Reached level 12. >>Force(Download) DOWNLOADED[Enh. Gauss Cannon] 03168_ ALERT: Suspicious activity at Fabricator F006. Dispatching Investigation squad. 03168_ Upgraded: Core Integrity (+100) 03168_ Upgraded: Energy Storage (+100) 03168_ Upgraded: Hack Attack % (+5) 03170_ Dropped Shock Bomb Launcher. 03170_ Acquired Imp. EM Pulse Cannon. 03172_ Dropped Com. Battery. Map ----- +----------------------------------------------------+ | """"""" | | """"""" | | """"""" | | | | #### | | #?## | | #### k % [u %u | | #### ####+###################### | | #### ## ? ################# ! | | ##?# ## ################# | | #### r ## #################! !!! [ | | ##?# ## ? ################# !!! # | | #### ## ! ################# !! " | | #### ## !? ##########] * # " | | #### ## ########## # " | | #### ## ! ########## """ / " | | #### #? ?########## """ # # | | #### ## ""?? ########## """ # [ [ #"## | | k## ?"?" ########## [###""#####" # | | ? ## ? """? ################# ### | | ## ??"" ################# ## | | k ? / ?? ?################# =! ### | | ## r ? ################# =! ### | | ???#?? ? ############################# | | ## ?? ## """" ################ | | ######+##?+#? ? ?? ##! @ """""" ################ | | # ??? ???#?###?#### ] ""F "" ################ | | # ###### #### """ ## r + | | # ? ? ?##### #### ## """ # | | ? #?? ??##### #### """"""""" ## """ # m | | ? ?? ###?## ??## ## ?"" +u | | ?# #??###t#########+###+### ?###?#### | | ? #? ###### t k # ? "######## | | ??#? ? ######/######## + "######## | | ??#? ? ## ?? # # ?# """ | | ### ? ## ? ? # ###### T# "R" | | ##############? """"""" # ###### "# " " | | ## ] ] = #### """"""" # #?#### ?"# | | ?# #### """"""" ?+ ###### ?# | | ?# """""" #### u""""""" # ###### # ! | | ## """""" #### # ############# | | ## """""" #### ! # ## #### """" | | + """""" #### r # ## #### """" | | ## #### # + #### """" | | ## #### "T"" # ## ! #### """" | | ## ! #### """" # ## u #### | | ######+#############/###### ## " " "k##########+ | | a k # " " " / | | # " " " ### | | + " " " ### | +----------------------------------------------------+ Best States ------------- Heat Dissipation 67 Energy Generation 33 Energy Capacity 500 Matter Stores 300 Matter Capacity 300 Sight Range 18 Robot Scan Range 28 Terrain Scan Range 24 Terrain Scan Density 610 Jamming Range 8 Resistance: KI 35 Resistance: TH 35 Resistance: EX 35 Resistance: EM 35 Resistance: I 35 Resistance: S 35 Resistance: P 35 Evasion (%) 69 Offensive Hacking 45 Defensive Hacking 15 Item Schematics ----------------- Imp. EM Shotgun | -9/Materials | Scanalyzed Flight Unit | -9/Materials | Hacked Imp. Datajack | -8/Materials | Hacked Recalibrator | -7/Factory | Scanalyzed System Backup Module | -7/Factory | Scanalyzed Hvy. Missile Launcher | -7/Factory | Scanalyzed Lgt. Nuclear Core | -7/Factory | Scanalyzed Imp. VTOL Module | -7/Factory | Scanalyzed Com. Battery | -7/Factory | Scanalyzed Structural Scanner | -7/Factory | Scanalyzed Imp. Terrain Scanner | -7/Factory | Scanalyzed Maneuvering Thrusters | -7/Factory | Scanalyzed Lgt. Angular Momentum Engine | -7/Factory | Scanalyzed Insulated Plating | -7/Factory | Extracted Weapon Shielding | -7/Factory | Extracted Prc. Assault Rifle | -7/Factory | Extracted Lrg. Matter Pod | -7/Factory | Extracted Enh. Gauss Cannon | -7/Factory | Downloaded Robot Schematics ------------------ None Fabricated ------------ Y-54 Guardian | x2 | -7/Factory | Preloaded Alien Tech Used ----------------- None Achievements -------------- Overkill Challenges ------------ None RPGLIKE | -11 -10 -9 -8 -7 --------- Run | Scr Mat Mat Mat Fac Levels Raised 11 | . . 4 2 5 XP Earned 22505 | 6000 815 5760 3003 6927 XP Spent 22455 | 5985 . 6010 2975 7485 Upgrades 66 | 30 . 13 5 18 Propulsion Slot 1 | 1 . . . . Utility Slot 4 | 1 . 2 . 1 Weapon Slot 1 | 1 . . . . Core Integrity 9 | 3 . 1 . 5 Heat Dissipation 7 | 3 . 1 . 3 Energy Generation 3 | 1 . 1 . 1 Energy Storage 3 | . . . . 3 Mass Support 3 | 1 . 1 . 1 Inventory Capacity 5 | 2 . 1 1 1 Sight Range 2 | 1 . 1 . . Sensor Range 14 | 9 . 2 2 1 Terrain Scan Density 5 | 3 . 1 . 1 Ranged Accuracy 2 | . . 1 1 . Hack Attack % 4 | 2 . 1 . 1 Hack Defense % 3 | 2 . . 1 . Protomatter Created 665 | . 88 269 54 254 Integrity Restored 676 | . 35 439 39 163 Core 535 | . 26 352 30 127 Parts 141 | . 9 87 9 36 Protomatter Decayed 407 | . . 117 41 249 Game ------ Seed TargetTargetingAutocannon Manual? 0 Play Time 03:11:21 Cumulative 172.8 hours Start 2021.01.20 @ 00:30:25 End 2021.01.21 @ 00:59:01 Sessions 1 Manual Loads 0 Difficulty Explorer Special Mode Winter2019/RPGLIKE Game No. 30 Rogue 9 Adventurer 0 Explorer 21 Win Type - Total 0 Types 0/0/0/0/0/0/0/0/0 Lore% 45 Gallery% 45 Achievement% 39 Wizard Run 0 Options --------- ASCII 0 Keyboard 0 Movement Mouse Keybinds 0 Fullscreen 2 Font 18/SmallcapsGlow Map View 76x50 Tactical HUD 1 Map Filters NONE Filters NONE Steam 1 RUN: ca75e1b5-f095-48d8-9954-856f6986a542